bitfinex/quotes_BTCUSD_20251231
["timestamp","ask_amount","ask_price","bid_price","bid_amount"]
[1767163955872,0.15335544,88556.0,88545.0,0.0002]
[1767163956215,0.1424,88555.0,88545.0,0.0002]
[1767163956581,0.15369241,88555.0,88545.0,0.0002]
[1767163957101,0.15369241,88555.0,88545.0,0.00015771]
[1767163957625,0.15369254,88554.0,88545.0,0.00015771]
[1767163957992,0.1424,88553.0,88545.0,0.00015771]
[1767163960652,0.15369267,88553.0,88545.0,0.00015771]
[1767163962015,0.01129279,88552.0,88545.0,0.00015771]
[1767163962242,0.01129292,88551.0,88545.0,0.00015771]
[1767163962808,0.01129279,88552.0,88545.0,0.00015771]
[1767163964892,0.15369267,88553.0,88545.0,0.00015771]
[1767163965294,0.1424,88553.0,88545.0,0.00015771]
[1767163966130,0.15369267,88553.0,88545.0,0.00015771]
[1767163966862,0.1424,88553.0,88545.0,0.00015771]
[1767163971777,0.1424,88553.0,88545.0,0.00011401]
[1767163971981,0.15369267,88553.0,88545.0,0.00011401]
[1767163972183,0.1424,88553.0,88545.0,0.00011401]
[1767163973967,0.01129241,88555.0,88545.0,0.00011401]
[1767163975835,0.01129254,88554.0,88545.0,0.00011401]
[1767163976041,0.01129228,88556.0,88545.0,0.00011401]
[1767163976481,0.035714,88557.0,88545.0,0.00011401]
[1767163976858,0.01129228,88556.0,88545.0,0.00011401]
[1767163977457,0.14690216,88557.0,88545.0,0.00011401]
[1767163977777,0.13561,88557.0,88545.0,0.00011401]
[1767163979340,0.13561,88557.0,88546.0,0.01356806]
[1767163981238,0.13561,88557.0,88546.0,0.01332706]
[1767163982149,0.13561,88557.0,88546.0,0.02462062]
[1767163982417,0.40345102,88560.0,88547.0,0.01129343]
[1767163982637,0.14111,88560.0,88547.0,0.01129343]
[1767163982829,0.14111,88560.0,88548.0,0.0112933]
[1767163983013,0.14111,88560.0,88546.0,0.02462062]
[1767163984377,0.14111,88560.0,88547.0,0.01129343]
[1767163984579,0.14111,88560.0,88546.0,0.02462062]
[1767163984769,0.14111,88560.0,88547.0,0.01129343]
[1767163985095,0.14111,88560.0,88546.0,0.02462062]
[1767163989325,0.26234102,88560.0,88547.0,0.15433343]
[1767163989755,0.26234102,88560.0,88548.0,0.0112933]
[1767163989955,0.0114331,88562.0,88548.0,0.0112933]
[1767163990203,0.1525431,88562.0,88547.0,0.15433343]
[1767163990717,0.1525431,88562.0,88548.0,0.0112933]
[1767163990921,0.1525431,88562.0,88550.0,0.01129305]
[1767163991741,0.1525431,88562.0,88551.0,0.01129292]
[1767163991963,0.1525431,88562.0,88550.0,0.01129305]
[1767163997166,0.0114331,88562.0,88551.0,0.15957292]
[1767163997337,0.0001131,88562.0,88551.0,0.15957292]
[1767163999393,0.0001131,88562.0,88552.0,0.01129279]
[1767164000707,0.0001131,88562.0,88551.0,0.14828]
[1767164001113,0.0001131,88562.0,88551.0,0.15957292]
[1767164002648,0.0001131,88562.0,88551.0,0.14828]
[1767164003165,0.0001131,88562.0,88550.0,0.01132]
[1767164003328,0.0001131,88562.0,88550.0,0.27366102]
[1767164003750,0.0001131,88562.0,88550.0,0.28495407]
[1767164004112,0.0001131,88562.0,88550.0,0.27366102]
[1767164005483,0.0001131,88562.0,88550.0,0.28495407]
[1767164005991,0.0001131,88562.0,88550.0,0.27366102]
[1767164006375,0.0001131,88562.0,88550.0,0.28495407]
[1767164006585,0.0001131,88562.0,88550.0,0.02261305]
[1767164006909,0.0001131,88562.0,88550.0,0.01132]
[1767164007252,0.0001131,88562.0,88550.0,0.02261305]
[1767164008458,0.0001131,88562.0,88550.0,0.01132]
[1767164009604,0.0001131,88562.0,88550.0,0.02261305]
[1767164011483,0.0001131,88562.0,88550.0,0.01132]
[1767164014850,0.0001131,88562.0,88550.0,0.02261305]
[1767164015099,0.0001131,88562.0,88550.0,0.01132]
[1767164015384,0.0001131,88562.0,88550.0,0.02261305]
[1767164015733,0.0001131,88562.0,88550.0,0.01132]
[1767164015933,0.0001131,88562.0,88550.0,0.02261305]
[1767164017042,0.0001131,88562.0,88550.0,0.01132]
[1767164018525,0.0001131,88562.0,88550.0,0.02261305]
[1767164019539,0.0001131,88562.0,88550.0,0.01132]
[1767164024096,0.0001131,88562.0,88550.0,0.02261305]
[1767164024372,0.0001131,88562.0,88550.0,0.01132]
[1767164025581,0.0001131,88562.0,88550.0,0.02261305]
[1767164026547,0.0001131,88562.0,88550.0,0.28486074]
[1767164027376,0.0001131,88562.0,88550.0,0.02261305]
[1767164028436,0.0001131,88562.0,88551.0,0.01129292]
[1767164029298,0.0001131,88562.0,88550.0,0.02261305]
[1767164029682,0.0001131,88562.0,88551.0,0.01129292]
[1767164032207,0.0001131,88562.0,88552.0,0.01129279]
[1767164032589,0.0001131,88562.0,88551.0,0.01129292]
[1767164040163,0.1399031,88562.0,88550.0,0.01132]
[1767164043456,0.14648203,88558.0,88550.0,0.01132]
[1767164043861,0.01129216,88557.0,88550.0,0.01132]
[1767164044065,0.13519,88558.0,88550.0,0.01132]
[1767164044806,0.14648203,88558.0,88550.0,0.01132]
[1767164045161,0.13519,88558.0,88550.0,0.01132]
[1767164045365,0.14648203,88558.0,88550.0,0.01132]
[1767164045565,0.13519,88558.0,88550.0,0.01132]
[1767164045997,0.14648203,88558.0,88550.0,0.01132]
[1767164046555,0.13519,88558.0,88550.0,0.01132]
[1767164052259,0.27353946,88560.0,88550.0,0.01132]
[1767164052637,0.0112919,88559.0,88550.0,0.01132]
[1767164052981,0.01129203,88558.0,88550.0,0.01132]
[1767164056188,0.0112919,88559.0,88550.0,0.01132]
[1767164056538,0.01129203,88558.0,88550.0,0.01132]
[1767164056891,0.0112919,88559.0,88550.0,0.01132]
[1767164057289,0.01129203,88558.0,88550.0,0.01132]
[1767164058913,0.01129216,88557.0,88550.0,0.01132]
[1767164059214,0.01129203,88558.0,88550.0,0.01132]
[1767164059866,0.0112919,88559.0,88550.0,0.01132]
[1767164060112,0.01129216,88557.0,88550.0,0.01132]
[1767164060332,0.01129203,88558.0,88550.0,0.01132]
[1767164060899,0.0112919,88559.0,88550.0,0.01132]
[1767164061559,0.01129203,88558.0,88550.0,0.01132]
[1767164065088,0.0112919,88559.0,88550.0,0.01132]
[1767164065288,0.27353946,88560.0,88550.0,0.01132]
[1767164066626,0.0112919,88559.0,88550.0,0.01132]
[1767164067647,0.01129203,88558.0,88550.0,0.01132]
[1767164067940,0.0112919,88559.0,88550.0,0.01132]
[1767164070044,0.01129203,88558.0,88550.0,0.01132]
[1767164071764,0.0112919,88559.0,88550.0,0.01132]
[1767164073335,0.27358857,88560.0,88550.0,0.01132]
[1767164074309,0.0112919,88559.0,88550.0,0.01132]
[1767164074469,0.1490719,88559.0,88550.0,0.01132]
[1767164074671,0.13778,88559.0,88550.0,0.01132]
[1767164076130,0.1490719,88559.0,88550.0,0.01132]
[1767164080350,0.13778,88559.0,88550.0,0.01132]
[1767164081718,0.1490719,88559.0,88550.0,0.01132]
[1767164082748,0.13778,88559.0,88550.0,0.01132]
[1767164083059,0.1490719,88559.0,88550.0,0.01132]
[1767164083358,0.13778,88559.0,88550.0,0.01132]
[1767164085650,0.1490719,88559.0,88550.0,0.01132]
[1767164086586,0.01129203,88558.0,88550.0,0.01132]
[1767164086799,0.1490719,88559.0,88550.0,0.01132]
[1767164087092,0.1490719,88559.0,88546.0,0.01332706]
[1767164087317,0.1490719,88559.0,88545.0,0.01143401]
[1767164087318,0.14805,88549.0,88545.0,0.01143401]
[1767164091406,0.15934318,88549.0,88545.0,0.01143401]
[1767164091591,0.14805,88549.0,88545.0,0.01143401]
[1767164091994,0.14805,88549.0,88545.0,0.01065187]
[1767164096593,0.01129292,88551.0,88545.0,0.01065187]
[1767164101898,0.01129305,88550.0,88545.0,0.01065187]
[1767164102098,0.01129292,88551.0,88545.0,0.01065187]
[1767164102510,0.01129305,88550.0,88545.0,0.01065187]
[1767164103131,0.01129292,88551.0,88545.0,0.01065187]
[1767164104015,0.06775718,88552.0,88545.0,0.01065187]
[1767164104778,0.01129292,88551.0,88545.0,0.01065187]
[1767164104979,0.01129279,88552.0,88545.0,0.01065187]
[1767164116883,0.01129267,88553.0,88545.0,0.01065187]
[1767164117115,0.01129279,88552.0,88545.0,0.01065187]
[1767164125130,0.01129292,88551.0,88545.0,0.01065187]
[1767164125328,0.01129279,88552.0,88545.0,0.01065187]
[1767164130815,0.01129267,88553.0,88545.0,0.01065187]
[1767164131176,0.01129279,88552.0,88545.0,0.01065187]
[1767164133985,0.01129267,88553.0,88545.0,0.01065187]
[1767164134550,0.01129279,88552.0,88545.0,0.01065187]
[1767164134746,0.01129267,88553.0,88545.0,0.01065187]
[1767164135999,0.01129279,88552.0,88545.0,0.01065187]
[1767164138610,0.01129292,88551.0,88545.0,0.01065187]
[1767164138910,0.01129279,88552.0,88545.0,0.01065187]
[1767164144329,0.01129267,88553.0,88545.0,0.01065187]
[1767164152775,0.01129279,88552.0,88545.0,0.01065187]
[1767164153046,0.01129267,88553.0,88545.0,0.01065187]
[1767164155975,0.14805,88554.0,88545.0,0.01065187]
[1767164156473,0.15934254,88554.0,88545.0,0.01065187]
[1767164157971,0.01129267,88553.0,88545.0,0.01065187]
[1767164158624,0.15934254,88554.0,88545.0,0.01065187]
[1767164159298,0.01129267,88553.0,88545.0,0.01065187]
[1767164160447,0.15934254,88554.0,88545.0,0.01065187]
[1767164160643,0.01129267,88553.0,88545.0,0.01065187]
[1767164161253,0.01129279,88552.0,88545.0,0.01065187]
[1767164161673,0.01129267,88553.0,88545.0,0.01065187]
[1767164161965,0.01129279,88552.0,88545.0,0.01065187]
[1767164163828,0.01129267,88553.0,88545.0,0.01065187]
[1767164164046,0.01129279,88552.0,88545.0,0.01065187]
[1767164164454,0.01129267,88553.0,88545.0,0.01065187]
[1767164166235,0.01129279,88552.0,88545.0,0.01065187]
[1767164166440,0.01129267,88553.0,88545.0,0.01065187]
[1767164167286,0.01129279,88552.0,88545.0,0.01065187]
[1767164167681,0.01129267,88553.0,88545.0,0.01065187]
[1767164170354,0.01129279,88552.0,88545.0,0.01065187]
[1767164170567,0.01129267,88553.0,88545.0,0.01065187]
[1767164170933,0.01129279,88552.0,88545.0,0.01065187]
[1767164171053,0.01129267,88553.0,88545.0,0.01065187]
[1767164171492,0.01129279,88552.0,88545.0,0.01065187]
[1767164172508,0.01129267,88553.0,88545.0,0.01065187]
[1767164173530,0.01129279,88552.0,88545.0,0.01065187]
[1767164174244,0.01129267,88553.0,88545.0,0.01065187]
[1767164181220,0.15934254,88554.0,88545.0,0.01065187]
[1767164181427,0.01129279,88552.0,88545.0,0.01065187]
[1767164181590,0.01129267,88553.0,88545.0,0.01065187]
[1767164181931,0.01129279,88552.0,88545.0,0.01065187]
[1767164182452,0.01129267,88553.0,88545.0,0.01065187]
[1767164182592,0.01129279,88552.0,88545.0,0.01065187]
[1767164183930,0.01129267,88553.0,88545.0,0.01065187]
[1767164184387,0.15934254,88554.0,88545.0,0.01065187]
[1767164186691,0.15934254,88554.0,88550.0,0.00043326]
[1767164188149,0.14805,88554.0,88550.0,0.00043326]
[1767164188310,0.07907328,88557.0,88550.0,0.00043326]
[1767164188311,0.01132,88557.0,88550.0,0.00043326]
[1767164188517,0.0001131,88562.0,88557.0,0.14901]
[1767164188733,0.0001131,88562.0,88557.0,0.14864451]
[1767164189069,0.0001131,88562.0,88557.0,0.14846]
[1767164189684,1e-07,88562.0,88557.0,0.14846]
[1767164199395,1e-07,88562.0,88553.0,0.01132]
[1767164212206,0.0112919,88559.0,88553.0,0.010842]
[1767164212587,0.01129177,88560.0,88553.0,0.010842]
[1767164212787,0.01129165,88561.0,88553.0,0.010842]
[1767164213506,0.01129177,88560.0,88553.0,0.010842]
[1767164214293,0.01129165,88561.0,88553.0,0.010842]
[1767164215015,0.01129177,88560.0,88553.0,0.010842]
[1767164215380,0.01129165,88561.0,88553.0,0.010842]
[1767164215813,0.01129177,88560.0,88553.0,0.010842]
[1767164216127,0.01129165,88561.0,88553.0,0.010842]
[1767164216281,0.0112919,88559.0,88553.0,0.010842]
[1767164216476,0.01129177,88560.0,88553.0,0.010842]
[1767164220815,0.01129165,88561.0,88553.0,0.010842]
[1767164221817,0.01129177,88560.0,88553.0,0.010842]
[1767164222303,0.01129165,88561.0,88553.0,0.010842]
[1767164225115,0.01129177,88560.0,88553.0,0.010842]
[1767164225610,0.01129165,88561.0,88553.0,0.010842]
[1767164227256,0.01129177,88560.0,88553.0,0.010842]
[1767164227408,0.01129165,88561.0,88553.0,0.010842]
[1767164227776,0.01129177,88560.0,88553.0,0.010842]
[1767164229026,0.0112919,88559.0,88553.0,0.010842]
[1767164229630,0.01129165,88561.0,88553.0,0.010842]
[1767164230029,0.01129162,88562.0,88553.0,0.010842]
[1767164230395,0.01129165,88561.0,88553.0,0.010842]
[1767164230732,0.01129162,88562.0,88553.0,0.010842]
[1767164233425,1e-07,88562.0,88553.0,0.010842]
[1767164234003,0.01129162,88562.0,88553.0,0.010842]
[1767164234206,1e-07,88562.0,88553.0,0.010842]
[1767164234527,0.01129162,88562.0,88553.0,0.010842]
[1767164234913,1e-07,88562.0,88553.0,0.010842]
[1767164235153,0.01129162,88562.0,88553.0,0.010842]
[1767164237377,0.01129165,88561.0,88553.0,0.010842]
[1767164237578,0.01129162,88562.0,88553.0,0.010842]
[1767164238347,0.01129165,88561.0,88553.0,0.010842]
[1767164240252,0.06775031,88561.0,88553.0,0.010842]
[1767164240629,0.0112919,88559.0,88553.0,0.010842]
[1767164240794,0.01129203,88558.0,88553.0,0.010842]
[1767164241030,0.0112919,88559.0,88553.0,0.010842]
[1767164241667,0.0112919,88559.0,88542.0,0.01129407]
[1767164241668,0.13722,88540.0,88538.0,3.1e-06]
[1767164241814,0.06031985,88558.0,88518.0,0.08147733]
[1767164241815,0.13722,88536.0,88519.0,0.02488806]
[1767164242015,0.26224439,88530.0,88519.0,0.17074806]
[1767164242245,0.14851484,88536.0,88519.0,0.17074806]
[1767164242444,0.26224439,88530.0,88519.0,0.17074806]
[1767164242806,0.26224439,88530.0,88519.0,0.18204506]
[1767164243024,0.26224439,88530.0,88520.0,0.15715688]
[1767164243387,0.26224439,88530.0,88520.0,0.14586]
[1767164243592,0.03391683,88531.0,88520.0,0.40810439]
[1767164243937,0.03391683,88531.0,88520.0,0.41940127]
[1767164244637,0.03391683,88531.0,88520.0,0.40810439]
[1767164244852,0.03391683,88531.0,88520.0,0.41940127]
[1767164245627,0.03391683,88531.0,88520.0,0.40810439]
[1767164246160,0.03391683,88531.0,88520.0,0.14586]
[1767164246829,0.26224439,88530.0,88520.0,0.14586]
[1767164247373,0.01129573,88529.0,88520.0,0.14586]
[1767164247512,0.26224439,88530.0,88520.0,0.14586]
[1767164250514,0.03391683,88531.0,88520.0,0.14586]
[1767164253576,0.0452123,88531.0,88520.0,0.14586]
[1767164253984,0.01129547,88531.0,88519.0,0.02488806]
[1767164254181,0.03391744,88530.0,88519.0,0.02488806]
[1767164256049,0.29638401,88530.0,88519.0,0.02488806]
[1767164256435,0.26246657,88530.0,88519.0,0.02488806]
[1767164256638,0.02488806,88529.0,88519.0,0.02488806]
[1767164257870,0.02488806,88529.0,88523.0,0.01356806]
[1767164258646,0.02488806,88529.0,88523.0,0.01368106]
[1767164261813,0.02488806,88529.0,88523.0,0.0137451]
[1767164263284,0.01427722,88529.0,88523.0,0.0137451]
[1767164263484,0.01090378,88529.0,88523.0,0.0137451]
[1767164263688,0.01129471,88537.0,88523.0,0.0137451]
[1767164264290,0.01129484,88536.0,88523.0,0.0137451]
[1767164264524,0.03391875,88535.0,88523.0,0.0137451]
[1767164265610,0.01129471,88537.0,88523.0,0.0137451]
[1767164265810,0.03391875,88536.0,88523.0,0.0137451]
[1767164266815,0.01129496,88535.0,88523.0,0.0137451]
[1767164267020,0.04521359,88536.0,88523.0,0.0137451]
[1767164267439,0.01129496,88535.0,88523.0,0.0137451]
[1767164268022,0.04521359,88536.0,88523.0,0.0137451]
[1767164268864,0.01129496,88535.0,88523.0,0.0137451]
[1767164271612,0.04521359,88536.0,88523.0,0.0137451]
[1767164272038,0.01129496,88535.0,88523.0,0.0137451]
[1767164273288,0.04521359,88536.0,88523.0,0.0137451]
[1767164273777,0.01129496,88535.0,88523.0,0.0137451]
[1767164273937,0.04521359,88536.0,88523.0,0.0137451]
[1767164274545,0.01129496,88535.0,88523.0,0.0137451]
[1767164275391,0.01129509,88534.0,88523.0,0.0137451]
[1767164275590,0.01129496,88535.0,88523.0,0.0137451]
[1767164275758,0.01129509,88534.0,88523.0,0.0137451]
[1767164275954,0.01129496,88535.0,88523.0,0.0137451]
[1767164277819,0.01129509,88534.0,88523.0,0.0137451]
[1767164278921,0.01129496,88535.0,88523.0,0.0137451]
[1767164280624,0.01129509,88534.0,88523.0,0.0137451]
[1767164281173,0.04521359,88536.0,88523.0,0.0137451]
[1767164281386,0.01129496,88535.0,88523.0,0.1604551]
[1767164281792,0.03391875,88536.0,88523.0,0.1604551]
[1767164282142,0.01132,88535.0,88532.0,0.14671]
[1767164282828,0.01132,88535.0,88525.0,0.14671]
[1767164284450,0.03391744,88542.0,88525.0,0.15800624]
[1767164284688,0.01132,88542.0,88535.0,0.000549]
[1767164285068,0.01132,88542.0,88530.0,0.14671]
[1767164287737,0.01132,88542.0,88530.0,0.1580056]
[1767164288204,0.01132,88542.0,88530.0,0.14671]
[1767164289192,0.01132,88542.0,88530.0,0.1580056]
[1767164289396,0.01132,88542.0,88530.0,0.14671]
[1767164289594,0.01132,88542.0,88530.0,0.1580056]
[1767164290006,0.01132,88542.0,88530.0,0.14671]
[1767164290544,0.01132,88542.0,88530.0,0.1580056]
[1767164290669,0.01132,88542.0,88530.0,0.14671]
[1767164290875,0.01132,88542.0,88530.0,0.1580056]
[1767164291177,0.01132,88542.0,88530.0,0.14671]
[1767164295643,0.01132,88542.0,88530.0,0.1580056]
[1767164295858,0.01132,88542.0,88530.0,0.14671]
[1767164296067,0.01132,88542.0,88530.0,0.1580056]
[1767164297075,0.01132,88542.0,88531.0,0.01129547]
[1767164297232,0.01132,88542.0,88530.0,0.1580056]
[1767164297455,0.01132,88542.0,88531.0,0.01129547]
[1767164297662,0.01132,88542.0,88530.0,0.1580056]
[1767164298263,0.01132,88542.0,88531.0,0.01129547]
[1767164299740,0.01132,88542.0,88532.0,0.01129535]
[1767164300031,0.01132,88545.0,88542.0,0.000549]
[1767164300231,0.01132,88545.0,88535.0,0.01129496]
[1767164300824,0.01132,88545.0,88537.0,0.01129471]
[1767164301004,0.01132,88545.0,88536.0,0.01129484]
[1767164301211,0.0001132,88548.0,88538.0,0.15883458]
[1767164301819,0.0001132,88548.0,88538.0,0.14754]
[1767164305076,2e-07,88548.0,88545.0,0.14754]
[1767164305256,2e-07,88548.0,88545.0,0.15883369]
[1767164305559,2e-07,88548.0,88545.0,0.14754]
[1767164307641,2e-07,88548.0,88545.0,0.15883369]
[1767164308414,2e-07,88548.0,88545.0,0.14754]
[1767164310692,2e-07,88548.0,88543.0,0.01129394]
[1767164310893,2e-07,88548.0,88542.0,0.01129407]
[1767164312202,2e-07,88548.0,88543.0,0.14754]
[1767164315085,2e-07,88548.0,88543.0,0.15883394]
[1767164315460,2e-07,88548.0,88543.0,0.14754]
[1767164318542,2e-07,88548.0,88540.0,0.01129433]
[1767164318722,2e-07,88548.0,88542.0,0.01129407]
[1767164318918,2e-07,88548.0,88539.0,0.16110806]
[1767164323315,2e-07,88548.0,88539.0,0.01356806]
[1767164326056,2e-07,88548.0,88539.0,0.02486251]
[1767164329236,2e-07,88548.0,88540.0,0.01129433]
[1767164332707,2e-07,88548.0,88539.0,0.02486251]
[1767164333275,2e-07,88548.0,88539.0,0.01356806]
[1767164333582,2e-07,88548.0,88539.0,0.02486251]
[1767164333765,2e-07,88548.0,88539.0,0.01356806]
[1767164335790,2e-07,88548.0,88539.0,0.02486251]
[1767164338894,2e-07,88548.0,88539.0,0.01356806]
[1767164339115,2e-07,88548.0,88539.0,0.02486251]
[1767164340029,2e-07,88548.0,88539.0,0.01356806]
[1767164340246,2e-07,88548.0,88539.0,0.02486251]
[1767164340617,2e-07,88548.0,88539.0,0.01356806]
[1767164341868,2e-07,88548.0,88539.0,0.02486251]
[1767164342067,2e-07,88548.0,88539.0,0.01356806]
[1767164342269,2e-07,88548.0,88539.0,0.02486251]
[1767164342485,2e-07,88548.0,88539.0,0.01356806]
[1767164344026,2e-07,88548.0,88539.0,0.02486251]
[1767164344227,2e-07,88548.0,88539.0,0.01356806]
[1767164346542,2e-07,88548.0,88539.0,0.02486251]
[1767164348376,2e-07,88548.0,88539.0,0.01356806]
[1767164348574,2e-07,88548.0,88539.0,0.02486251]
[1767164348868,2e-07,88548.0,88539.0,0.01356806]
[1767164349069,2e-07,88548.0,88539.0,0.02486251]
[1767164349290,2e-07,88548.0,88539.0,0.01356806]
[1767164349464,2e-07,88548.0,88539.0,0.02486251]
[1767164350293,2e-07,88548.0,88539.0,0.01356806]
[1767164350495,2e-07,88548.0,88539.0,0.02486251]
[1767164351241,2e-07,88548.0,88539.0,0.01356806]
[1767164358169,2e-07,88548.0,88539.0,0.02486251]
[1767164359434,2e-07,88548.0,88540.0,0.01129433]
[1767164360629,2e-07,88548.0,88541.0,0.0112942]
[1767164361446,2e-07,88548.0,88540.0,0.01129433]
[1767164362153,2e-07,88548.0,88539.0,0.02486251]
[1767164362351,2e-07,88548.0,88540.0,0.01129433]
[1767164365665,2e-07,88548.0,88541.0,0.0112942]
[1767164365863,2e-07,88548.0,88540.0,0.01129433]
[1767164368200,2e-07,88548.0,88541.0,0.0112942]
[1767164369177,2e-07,88548.0,88540.0,0.01129433]
[1767164371040,2e-07,88548.0,88541.0,0.0112942]
[1767164373892,2e-07,88548.0,88540.0,0.01129433]
[1767164374890,2e-07,88548.0,88541.0,0.0112942]
[1767164376819,2e-07,88548.0,88542.0,0.01129407]
[1767164377729,2e-07,88548.0,88541.0,0.0112942]
[1767164378080,2e-07,88548.0,88542.0,0.01129407]
[1767164378427,2e-07,88548.0,88541.0,0.0112942]
[1767164379015,2e-07,88548.0,88542.0,0.01129407]
[1767164379345,2e-07,88548.0,88541.0,0.0112942]
[1767164381645,2e-07,88548.0,88542.0,0.01129407]
[1767164382047,2e-07,88548.0,88541.0,0.0112942]
[1767164382248,2e-07,88548.0,88540.0,0.01129433]
[1767164382963,2e-07,88548.0,88541.0,0.0112942]
[1767164386237,2e-07,88548.0,88540.0,0.01129433]
[1767164386433,2e-07,88548.0,88541.0,0.0112942]
[1767164387547,2e-07,88548.0,88542.0,0.01129407]
[1767164387751,2e-07,88548.0,88541.0,0.0112942]
[1767164388320,2e-07,88548.0,88542.0,0.01129407]
[1767164393111,2e-07,88548.0,88541.0,0.0112942]
[1767164394606,2e-07,88548.0,88542.0,0.01129407]
[1767164394789,2e-07,88548.0,88541.0,0.0112942]
[1767164396238,2e-07,88548.0,88540.0,0.01129433]
[1767164397147,2e-07,88548.0,88541.0,0.0112942]
[1767164399255,2e-07,88548.0,88540.0,0.01129433]
[1767164399486,2e-07,88548.0,88539.0,0.01356806]
[1767164399665,0.13402741,88554.0,88539.0,0.01356806]
[1767164399825,0.0002,88550.0,88539.0,0.01356806]
[1767164400229,0.13873,88550.0,88539.0,0.01356806]
[1767164414516,0.13850412,88550.0,88539.0,0.01356806]
[1767164426095,0.14979717,88550.0,88539.0,0.01356806]
[1767164426302,0.13850412,88550.0,88539.0,0.01356806]
[1767164431672,0.14979717,88550.0,88539.0,0.01356806]
[1767164431864,0.13850412,88550.0,88539.0,0.01356806]
[1767164432880,0.14979717,88550.0,88539.0,0.01356806]
[1767164433697,0.13850412,88550.0,88539.0,0.01356806]
[1767164434239,0.2258584,88552.0,88531.0,0.0001131]
[1767164434448,0.15467445,88539.0,88531.0,0.0001131]
[1767164434642,0.14338,88537.0,88531.0,0.0001131]
[1767164438080,0.26240893,88541.0,88532.0,0.01356806]
[1767164438739,0.14338,88542.0,88532.0,0.01356806]
[1767164439356,0.40578893,88542.0,88532.0,0.01356806]
[1767164440700,0.41710893,88542.0,88532.0,0.01356806]
[1767164441494,0.40578893,88542.0,88532.0,0.01356806]
[1767164442859,0.15467433,88540.0,88531.0,0.0001131]
[1767164443056,0.15467433,88540.0,88531.0,1e-07]
[1767164444183,0.15467445,88539.0,88531.0,1e-07]
[1767164444769,0.14338,88539.0,88531.0,1e-07]
[1767164444968,0.15467445,88539.0,88531.0,1e-07]
[1767164446118,0.14338,88539.0,88531.0,1e-07]
[1767164447229,0.15467445,88539.0,88531.0,1e-07]
[1767164447407,0.14338,88539.0,88531.0,1e-07]
[1767164448539,0.15467445,88539.0,88531.0,1e-07]
[1767164448740,0.01129484,88536.0,88531.0,1e-07]
[1767164448959,0.14524,88535.0,88531.0,1e-07]
[1767164449404,0.14524,88535.0,88530.0,0.0002]
[1767164449608,0.01129484,88536.0,88524.0,0.0001131]
[1767164449609,0.0002,88530.0,88524.0,0.0001131]
[1767164449811,0.15653522,88533.0,88524.0,0.0001131]
[1767164450046,0.14524,88531.0,88524.0,3.1e-06]
[1767164451713,0.15653547,88531.0,88524.0,3.1e-06]
[1767164451929,0.14524,88528.0,88524.0,3.1e-06]
[1767164466073,0.15653586,88528.0,88524.0,3.1e-06]
[1767164466514,0.01129598,88527.0,88524.0,3.1e-06]
[1767164466920,0.15653586,88528.0,88524.0,3.1e-06]
[1767164467537,0.01129598,88527.0,88524.0,3.1e-06]
[1767164467938,0.15653586,88528.0,88524.0,3.1e-06]
[1767164469135,0.01129598,88527.0,88524.0,3.1e-06]
[1767164469339,0.01129586,88528.0,88524.0,3.1e-06]
[1767164469877,0.01129535,88532.0,88524.0,3.1e-06]
[1767164470074,0.15962535,88532.0,88524.0,3.1e-06]
[1767164470457,0.14833,88532.0,88524.0,3.1e-06]
[1767164474391,0.01132,88533.0,88524.0,3.1e-06]
[1767164482563,0.15301,88533.0,88524.0,3.1e-06]
[1767164485073,0.14169,88533.0,88524.0,3.1e-06]
[1767164485274,0.01132,88532.0,88524.0,3.1e-06]
[1767164494671,0.02261535,88532.0,88524.0,3.1e-06]
[1767164495009,0.01132,88532.0,88524.0,3.1e-06]
[1767164504332,0.01132,88532.0,88517.0,0.01129726]
[1767164504333,0.01129713,88518.0,88507.0,0.0001986]
[1767164504662,0.000436,88508.0,88507.0,0.00027867]
[1767164504901,0.01129752,88515.0,88507.0,0.00027867]
[1767164505268,0.01129739,88516.0,88507.0,0.00027867]
[1767164505477,0.01129752,88515.0,88507.0,0.00027867]
[1767164506693,0.01129739,88516.0,88507.0,0.00027867]
[1767164507302,0.01129752,88515.0,88507.0,0.00027867]
[1767164508407,0.01129764,88514.0,88507.0,0.00027867]
[1767164508572,0.01129752,88515.0,88507.0,0.00027867]
[1767164508792,0.01129764,88514.0,88507.0,0.00027867]
[1767164509351,0.01129752,88515.0,88507.0,0.00027867]
[1767164510281,0.01129777,88513.0,88507.0,6.7e-07]
[1767164510459,0.14886,88512.0,88507.0,6.7e-07]
[1767164512839,0.14886,88512.0,88503.0,3.1e-06]
[1767164513040,0.01129777,88513.0,88503.0,5.106e-05]
[1767164513041,0.14886,88506.0,88503.0,5.106e-05]
[1767164513375,0.16015841,88508.0,88503.0,6e-08]
[1767164513584,0.01129841,88508.0,88503.0,6e-08]
[1767164514136,0.01129854,88507.0,88503.0,6e-08]
[1767164514582,0.16015854,88507.0,88503.0,6e-08]
[1767164514925,0.01129866,88506.0,88503.0,6e-08]
[1767164515265,0.16015854,88507.0,88503.0,6e-08]
[1767164516291,0.01129866,88506.0,88503.0,6e-08]
[1767164516465,0.16015854,88507.0,88503.0,6e-08]
[1767164516762,0.16015866,88506.0,88503.0,6e-08]
[1767164516942,0.14886,88506.0,88503.0,6e-08]
[1767164518039,0.16015866,88506.0,88503.0,6e-08]
[1767164518177,0.14886,88506.0,88503.0,6e-08]
[1767164518383,0.16015866,88506.0,88503.0,6e-08]
[1767164518857,0.14886,88506.0,88503.0,6e-08]
[1767164519060,0.01129854,88507.0,88503.0,6e-08]
[1767164520333,0.01129866,88506.0,88503.0,6e-08]
[1767164520964,0.16015866,88506.0,88503.0,6e-08]
[1767164522059,0.01129854,88507.0,88503.0,6e-08]
[1767164523108,0.15943803,88511.0,88503.0,6e-08]
[1767164523285,0.01129841,88508.0,88503.0,6e-08]
[1767164524634,0.01129854,88507.0,88503.0,6e-08]
[1767164524862,0.01129866,88506.0,88503.0,6e-08]
[1767164530145,0.01129854,88507.0,88503.0,6e-08]
[1767164531280,0.01129866,88506.0,88503.0,6e-08]
[1767164531777,0.14814,88505.0,88503.0,6e-08]
[1767164533175,0.06779217,88506.0,88503.0,6e-08]
[1767164533381,0.01129866,88506.0,88503.0,6e-08]
[1767164539264,0.13882,88505.0,88503.0,6e-08]
[1767164539833,0.06779248,88506.0,88503.0,6e-08]
[1767164544516,0.06779248,88506.0,88497.0,0.0001131]
[1767164544517,0.0564981,88499.0,88497.0,0.0001131]
[1767164544713,0.0564981,88499.0,88486.0,0.06783924]
[1767164544714,0.01129969,88498.0,88486.0,0.06783924]
[1767164545377,0.06779766,88499.0,88486.0,0.06783924]
[1767164545820,0.01129969,88498.0,88486.0,0.06783924]